fUST/lending_fUST_20250329
["ID","MTS","AMOUNT","RATE_DAILY","PERIOD"]
[356804624,1743228649931,-1577.99,0.00024931,2]
[356804625,1743228649940,-500.0,0.00024931,2]
[356804626,1743228649950,-1017.17,0.00024931,2]
[356804627,1743228649959,-4035.91,0.00024931,2]
[356804628,1743228649968,-500.0,0.00024931,2]
[356804629,1743228649978,-2265.64,0.00024931,2]
[356804630,1743228649987,-1192.79,0.00024931,2]
[356804631,1743228649997,-500.0,0.00024931,2]
[356804632,1743228650006,-7296.76,0.00024931,2]
[356804633,1743228650015,-500.0,0.00024931,2]
[356804634,1743228650024,-500.0,0.00024931,2]
[356804635,1743228650033,-500.0,0.00024931,2]
[356804636,1743228650042,-1084.57,0.00024931,2]
[356804637,1743228650051,-500.0,0.00024931,2]
[356804638,1743228650061,-1723.72,0.00024931,2]
[356804639,1743228650070,-9340.09,0.00024931,2]
[356804640,1743228650080,-968.54,0.00024931,2]
[356804641,1743228650090,-500.0,0.00024931,2]
[356804642,1743228650100,-984.35,0.00024931,2]
[356804643,1743228650109,-227.21157109,0.00024931,2]
[356804644,1743228650120,-1092.78,0.00024931,2]
[356804645,1743228650130,-500.0,0.00024931,2]
[356804646,1743228650140,-3035.02,0.00024931,2]
[356804647,1743228650150,-1171.31,0.00024931,2]
[356804648,1743228650159,-500.0,0.00024931,2]
[356804649,1743228650169,-24477.86,0.00024931,2]
[356804650,1743228650179,-1647.0,0.00024931,2]
[356804651,1743228650188,-1072.77,0.00024931,2]
[356804652,1743228650198,-555.16,0.00024931,2]
[356804653,1743228650207,-500.0,0.00024931,2]
[356804654,1743228650223,-500.0,0.00024931,2]
[356804655,1743228650233,-21925.14,0.00024931,2]
[356804656,1743228650243,-500.0,0.00024931,2]
[356804657,1743228650252,-500.0,0.00024931,2]
[356804658,1743228650263,-500.0,0.00024931,2]
[356804659,1743228650272,-22749.64,0.00024931,2]
[356804660,1743228650282,-567.44,0.00024931,2]
[356804661,1743228650292,-1846.83,0.00024931,2]
[356804662,1743228650302,-500.0,0.00024931,2]
[356804663,1743228650312,-500.0,0.00024931,2]
[356804664,1743228650321,-515.12,0.00024931,2]
[356804665,1743228650331,-2723.39,0.00024931,2]
[356804666,1743228650340,-3799.41,0.00024931,2]
[356804667,1743228650350,-1380.61,0.00024931,2]
[356804668,1743228650359,-500.0,0.00024931,2]
[356804669,1743228650369,-500.0,0.00024931,2]
[356804670,1743228650378,-500.0,0.00024931,2]
[356804671,1743228650389,-437.811641,0.00024931,7]
[356804672,1743228650399,-437.811641,0.00024931,7]
[356804673,1743228650408,-1204.05,0.00024931,2]
[356804674,1743228650418,-437.811641,0.00024931,7]
[356804675,1743228650427,-437.811641,0.00024931,7]
[356804676,1743228650437,-437.811641,0.00024931,7]
[356804677,1743228650447,-939.81,0.00024931,2]
[356804678,1743228650456,-6457.3,0.00024931,2]
[356804679,1743228650466,-500.0,0.00024931,2]
[356804680,1743228650475,-694.24,0.00024931,2]
[356804681,1743228650484,-2692.56,0.00024931,2]
[356804682,1743228650493,-437.811641,0.00024931,7]
[356804683,1743228650502,-437.811641,0.00024931,7]
[356804684,1743228650512,-437.811641,0.00024931,7]
[356804685,1743228650521,-437.811641,0.00024931,7]
[356804686,1743228650530,-267002.34521537,0.00024931,2]
[356804687,1743228650809,-7766.26668424,0.00024931,2]
[356804688,1743228650884,-10438.00273906,0.00024931,2]
[356804689,1743228650896,-9405.04610713,0.00024931,2]
[356804690,1743228650907,-1705.04698977,0.00024931,2]
[356804691,1743228651404,-1569.66884816,0.00024931,2]
[356804692,1743228651417,-7095.63298163,0.00024931,2]
[356804693,1743228651435,-822.16412362,0.00024931,2]
[356804694,1743228651633,-345.24916212,0.00024931,2]
[356804695,1743228651707,-468.1471489,0.00024931,2]
[356804696,1743228651716,-437.81164196,0.00024931,7]
[356804697,1743228651726,-500.0,0.00024931,2]
[356804698,1743228651735,-625.42,0.00024931,2]
[356804699,1743228651744,-500.0,0.00024931,2]
[356804700,1743228651754,-500.0,0.00024931,2]
[356804701,1743228651765,-1161.06,0.00024931,2]
[356804702,1743228651774,-7502.98,0.00024931,2]
[356804703,1743228651783,-501.77768974,0.00024931,2]
[356804704,1743228651793,-549.29,0.00024931,2]
[356804705,1743228651803,-635.37,0.00024931,2]
[356804706,1743228651812,-933.81,0.00024931,2]
[356804707,1743228651821,-836.78,0.00024931,2]
[356804708,1743228651831,-11088.96,0.00024931,2]
[356804709,1743228651840,-550.74103653,0.00024931,2]
[356804710,1743228651850,-500.0,0.00024931,2]
[356804711,1743228651859,-500.0,0.00024931,2]
[356804712,1743228651868,-3059.28,0.00024931,2]
[356804713,1743228651878,-212.04265145,0.00024931,2]
[356804714,1743228651887,-500.0,0.00024931,2]
[356804715,1743228651897,-500.0,0.00024931,2]
[356804716,1743228651906,-500.0,0.00024931,2]
[356804717,1743228651916,-634.54,0.00024931,2]
[356804718,1743228651927,-4790.81786877,0.00024931,2]
[356804719,1743228652167,-817.9920126,0.00024931,2]
[356804720,1743228652179,-504.59787035,0.00024931,2]
[356804721,1743228652191,-4323.34054998,0.00024931,2]
[356804722,1743228718448,-151.0,0.00022332,2]
[356804723,1743228727368,-152.86131706,0.00022,2]
[356804724,1743228899746,184.812859,0.00013699,2]
[356804739,1743229647128,-303.86131706,0.00021133,2]
[356804740,1743229647149,-512.51483505,0.00022,2]
[356804741,1743229647178,-1001.71505554,0.00022,2]
[356804742,1743229650092,-4895.90879235,0.00022,2]
[356804743,1743229650115,-300.0,0.00022331,2]
[356804744,1743229650136,-4770.54235784,0.00022332,2]
[356804745,1743229654416,-78.45764216,0.00022332,2]
[356804746,1743229654440,-300.1941444,0.00023264,2]
[356804747,1743229654466,-177.04603745,0.00023264,2]
[356804764,1743229746079,-227.35752295,0.0002,7]
[356804765,1743229746100,-4869.50210208,0.000219,2]
[356804767,1743229753094,-130.49789792,0.000219,2]
[356804768,1743229753116,-151.96379127,0.00023164,2]
[356804769,1743229753137,-575.16385838,0.00023164,2]
[356804770,1743229753158,-210.13590108,0.00023263,2]
[356804771,1743229753181,-500.0,0.00023263,2]
[356804772,1743229753206,-500.0,0.00023263,2]
[356804773,1743229753227,-500.0,0.00023263,2]
[356804774,1743229753250,-500.0,0.00023263,2]
[356804775,1743229753275,-500.0,0.00023263,2]
[356804776,1743229753297,-500.0,0.00023263,2]
[356804777,1743229753320,-500.0,0.00023263,2]
[356804778,1743229753346,-500.0,0.00023263,2]
[356804779,1743229753368,-500.0,0.00023263,2]
[356804780,1743229753394,-500.0,0.00023263,2]
[356804781,1743229753416,-500.0,0.00023263,2]
[356804782,1743229753442,-500.0,0.00023263,2]
[356804783,1743229753464,-500.0,0.00023263,2]
[356804784,1743229753490,-500.0,0.00023263,2]
[356804785,1743229753512,-500.0,0.00023263,2]
[356804786,1743229753538,-500.0,0.00023263,2]
[356804787,1743229753757,-500.0,0.00023263,2]
[356804788,1743229753785,-500.0,0.00023263,2]
[356804789,1743229753809,-500.0,0.00023263,2]
[356804790,1743229753836,-500.0,0.00023263,2]
[356804791,1743229753859,-500.0,0.00023263,2]
[356804792,1743229753885,-500.0,0.00023263,2]
[356804793,1743229753908,-500.0,0.00023263,2]
[356804794,1743229753934,-500.0,0.00023263,2]
[356804795,1743229753956,-500.0,0.00023263,2]
[356804796,1743229753983,-500.0,0.00023263,2]
[356804797,1743229754005,-500.0,0.00023263,2]
[356804798,1743229754033,-500.0,0.00023263,2]
[356804799,1743229754060,-500.0,0.00023263,2]
[356804800,1743229754088,-500.0,0.00023263,2]
[356804801,1743229754112,-500.0,0.00023263,2]
[356804802,1743229754139,-500.0,0.00023263,2]
[356804803,1743229754163,-500.0,0.00023263,2]
[356804804,1743229754189,-500.0,0.00023263,2]
[356804805,1743229754211,-500.0,0.00023263,2]
[356804806,1743229754237,-500.0,0.00023263,2]
[356804807,1743229754260,-500.0,0.00023263,2]
[356804808,1743229754287,-500.0,0.00023263,2]
[356804809,1743229754317,-500.0,0.00023263,2]
[356804810,1743229754345,-500.0,0.00023263,2]
[356804811,1743229754369,-500.0,0.00023263,2]
[356804812,1743229754396,-500.0,0.00023263,2]
[356804813,1743229754424,-500.0,0.00023263,2]
[356804814,1743229754447,-500.0,0.00023263,2]
[356804815,1743229754474,-500.0,0.00023263,2]
[356804816,1743229754498,-500.0,0.00023263,2]
[356804817,1743229754526,-500.0,0.00023263,2]
[356804818,1743229754554,-500.0,0.00023263,2]
[356804819,1743229754581,-344.09878045,0.00023263,2]
[356804820,1743229754609,-500.0,0.00023263,2]
[356804821,1743229754633,-500.0,0.00023263,2]
[356804822,1743229754662,-500.0,0.00023263,2]
[356804823,1743229754686,-500.0,0.00023263,2]
[356804824,1743229754713,-500.0,0.00023263,2]
[356804825,1743229754740,-500.0,0.00023263,2]
[356804826,1743229754764,-500.0,0.00023263,2]
[356804827,1743229754791,-500.0,0.00023263,2]
[356804828,1743229754818,-500.0,0.00023263,2]
[356804829,1743229754845,-500.0,0.00023263,2]
[356804830,1743229754871,-500.0,0.00023263,2]
[356804831,1743229754897,-500.0,0.00023263,2]
[356804832,1743229754921,-500.0,0.00023263,2]
[356804833,1743229754946,-500.0,0.00023263,2]
[356804834,1743229754971,-500.0,0.00023263,2]
[356804835,1743229754996,-500.0,0.00023263,2]
[356804836,1743229755022,-500.0,0.00023263,2]
[356804837,1743229755048,-500.0,0.00023263,2]
[356804838,1743229755075,-500.0,0.00023263,2]
[356804839,1743229755102,-500.0,0.00023263,2]
[356804840,1743229755129,-500.0,0.00023263,2]
[356804841,1743229755156,-500.0,0.00023263,2]
[356804842,1743229755183,-500.0,0.00023263,2]
[356804843,1743229755209,-500.0,0.00023263,2]
[356804844,1743229755234,-500.0,0.00023263,2]
[356804845,1743229755260,-379.11812689,0.00023263,2]
[356804846,1743229755286,-500.0,0.00023263,2]
[356804847,1743229755312,-500.0,0.00023263,2]
[356804848,1743229755334,-500.0,0.00023263,2]
[356804849,1743229755361,-969.01226332,0.00023263,2]
[356804850,1743229755383,-500.0,0.00023263,2]
[356804851,1743229755408,-969.01226332,0.00023263,2]
[356804852,1743229755433,-969.01226332,0.00023263,2]
[356804853,1743229755459,-969.01226332,0.00023263,2]
[356804854,1743229755485,-969.01226332,0.00023263,2]
[356804855,1743229755510,-969.01226332,0.00023263,2]
[356804856,1743229755537,-969.01226332,0.00023263,2]
[356804857,1743229755564,-969.01226332,0.00023263,2]
[356804858,1743229755593,-969.01226332,0.00023263,2]
[356804859,1743229755619,-969.01226332,0.00023263,2]
[356804860,1743229755645,-969.01226332,0.00023263,2]
[356804861,1743229755672,-969.01226332,0.00023263,2]
[356804862,1743229755698,-969.01226332,0.00023263,2]
[356804863,1743229755725,-969.01226332,0.00023263,2]
[356804864,1743229755752,-969.01226332,0.00023263,2]
[356804865,1743229755778,-969.01226332,0.00023263,2]
[356804866,1743229755806,-969.01226332,0.00023263,2]
[356804867,1743229755832,-969.01226332,0.00023263,2]
[356804868,1743229755858,-969.01226332,0.00023263,2]
[356804869,1743229755885,-969.01226332,0.00023263,2]
[356804870,1743229755911,-969.01226332,0.00023263,2]
[356804871,1743229755936,-969.01226332,0.00023263,2]
[356804872,1743229755961,-969.01226332,0.00023263,2]
[356804873,1743229755987,-969.01226332,0.00023263,2]
[356804874,1743229756013,-936.71185455,0.00023263,2]
[356804875,1743229756039,-936.71185455,0.00023263,2]
[356804876,1743229756066,-936.71185455,0.00023263,2]
[356804877,1743229756092,-936.71185455,0.00023263,2]
[356804878,1743229756118,-936.71185455,0.00023263,2]
[356804879,1743229756144,-936.71185455,0.00023263,2]
[356804880,1743229756172,-936.71185455,0.00023263,2]
[356804881,1743229756198,-936.71185455,0.00023263,2]
[356804882,1743229756225,-936.71185455,0.00023263,2]
[356804883,1743229756251,-936.71185455,0.00023263,2]
[356804884,1743229756277,-936.71185455,0.00023263,2]
[356804885,1743229756305,-936.71185455,0.00023263,2]
[356804886,1743229756331,-936.71185455,0.00023263,2]
[356804887,1743229756357,-936.71185455,0.00023263,2]
[356804888,1743229756384,-936.71185455,0.00023263,2]
[356804889,1743229756410,-936.71185455,0.00023263,2]
[356804890,1743229756436,-936.71185455,0.00023263,2]
[356804891,1743229756464,-936.71185455,0.00023263,2]
[356804892,1743229756486,-24900.0,0.00023268,2]
[356804893,1743229756508,-466.78,0.0002329,3]
[356804894,1743229756529,-507.30636795,0.000233,2]
[356804895,1743229756552,-500.9489474,0.000233,2]
[356804896,1743229756574,-500.0,0.000233,2]
[356804897,1743229756601,-500.0,0.000233,2]
[356804898,1743229756624,-500.0,0.000233,2]
[356804899,1743229756646,-500.0,0.000233,2]
[356804900,1743229756668,-500.0,0.000233,2]
[356804901,1743229756690,-501.65040437,0.000233,2]
[356804902,1743229756711,-500.0,0.000233,2]
[356804903,1743229756732,-584.49209161,0.000233,2]
[356804904,1743229756753,-500.0,0.000233,2]
[356804905,1743229756775,-500.0,0.000233,2]
[356804906,1743229756796,-500.0,0.000233,2]
[356804907,1743229756819,-500.0,0.000233,2]
[356804908,1743229756840,-500.0,0.000233,2]
[356804909,1743229756861,-500.0,0.000233,2]
[356804910,1743229756882,-500.0,0.000233,2]
[356804911,1743229756903,-181.85952918,0.000233,2]
[356804912,1743229756924,-298.75945701,0.000233,2]
[356804913,1743229757243,-201.56561023,0.000233,2]
[356804914,1743229757264,-504.02827206,0.000233,2]
[356804915,1743229757285,-500.0,0.000233,2]
[356804916,1743229757306,-265.25930081,0.000233,2]
[356804917,1743229757327,-500.0,0.000233,2]
[356804918,1743229757348,-195.412774,0.00023391,14]
[356804928,1743229778786,500.0,0.00023263,2]
[356804929,1743229778833,500.0,0.00023263,2]
[356804930,1743229778889,500.0,0.00023263,2]
[356804931,1743229778943,186.08133811,0.00023263,2]
[356804936,1743229803002,151.96379127,2.5e-06,2]
[356804937,1743229804142,500.0,0.000233,2]
[356804938,1743229804297,500.0,0.000233,2]
[356804939,1743229804705,500.0,0.000233,2]
[356804987,1743229832463,-925.1385354,0.00024183,2]
[356804989,1743229832473,-346.53134821,0.000243,6]
[356804991,1743229832483,-1370.14410867,0.000243,2]
[356804992,1743229832492,-28613.69853625,0.00024308,2]
[356805031,1743229838742,-500.0,0.00024307,2]
[356805032,1743229838752,-500.0,0.00024307,2]
[356805033,1743229838761,-500.0,0.00024307,2]
[356805034,1743229838772,-500.0,0.00024307,2]
[356805035,1743229838781,-268.60813381,0.00024307,2]
[356805036,1743229838793,-434.40987804,0.00024307,2]
[356805037,1743229838805,-500.0,0.00024307,2]
[356805038,1743229838814,-500.0,0.00024307,2]
[356805039,1743229838826,-500.0,0.00024307,2]
[356805040,1743229838837,-500.0,0.00024307,2]
[356805041,1743229838846,-500.0,0.00024307,2]
[356805042,1743229838856,-2281.71376465,0.00024308,2]
[356805043,1743229838868,-9822.91230096,0.00024308,2]
[356805044,1743229838880,-350.4527043,0.00024308,2]
[356805045,1743229838891,-22510.77862732,0.00024308,2]
[356805046,1743229838900,-300.0,0.00024309,2]
[356805047,1743229838910,-19380.87074133,0.0002431,2]
[356805086,1743229840240,-3878.78992834,0.0002431,2]
[356805089,1743229840255,-149981.58120705,0.0002431,2]
[356805090,1743229840267,-101044.52998349,0.0002431,2]
[356805130,1743229840663,-3075.94034887,0.0002431,2]
[356805169,1743229841026,-4806.65434554,0.0002431,2]
[356805273,1743229846593,-90.70846134,0.0002431,2]
[356805282,1743229846713,-5281.43755826,0.0002431,2]
[356805287,1743229847738,5000.0,0.000218,2]
[356805306,1743230038924,184.812859,0.00013699,2]
[356805332,1743230830165,-258.43840841,0.00021152,2]
[356805333,1743230830189,-1910.40317307,0.000218,2]
[356805334,1743230840161,-1706.2784596,0.000218,2]
[356805335,1743230840184,-1348.8889667,0.00021877,2]
[356805336,1743230840205,-265.0,0.00022,2]
[356805337,1743230840226,-265.0,0.00022192,2]
[356805338,1743230840245,-218.92685,0.0002232,2]
[356805339,1743230840271,-300.0,0.00022998,2]
[356805340,1743230840295,-500.0,0.00022999,2]
[356805341,1743230840322,-500.0,0.00022999,2]
[356805342,1743230840345,-500.0,0.00022999,2]
[356805343,1743230840369,-500.0,0.00022999,2]
[356805344,1743230840392,-500.0,0.00022999,2]
[356805345,1743230840414,-348.72554352,0.00022999,2]
[356805346,1743230840440,-500.0,0.00022999,2]
[356805347,1743230840467,-500.0,0.00022999,2]
[356805348,1743230840495,-500.0,0.00022999,2]
[356805349,1743230840521,-500.0,0.00022999,2]
[356805350,1743230840551,-500.0,0.00022999,2]
[356805351,1743230840578,-500.0,0.00022999,2]
[356805352,1743230840603,-500.0,0.00022999,2]
[356805353,1743230840629,-500.0,0.00022999,2]
[356805354,1743230840654,-500.0,0.00022999,2]
[356805355,1743230840681,-500.0,0.00022999,2]
[356805356,1743230840706,-500.0,0.00022999,2]
[356805357,1743230840730,-500.0,0.00022999,2]
[356805358,1743230840754,-500.0,0.00022999,2]
[356805359,1743230840779,-500.0,0.00022999,2]
[356805360,1743230840804,-500.0,0.00022999,2]
[356805361,1743230840830,-355.37324175,0.00022999,2]
[356805362,1743230840857,-500.0,0.00022999,2]
[356805363,1743230840888,-499.99999999,0.00022999,2]
[356805364,1743230840910,-24900.0,0.00023002,2]
[356805365,1743230840934,-265.0,0.00023014,2]
[356805366,1743230840954,-192.2979704,0.00023083,2]
[356805367,1743230840977,-156.330219,0.00023391,14]
[356805368,1743230840999,-156.330219,0.00023668,14]
[356805369,1743230841020,-156.330219,0.00023946,14]
[356805370,1743230841041,-314.16492768,0.00023989,2]
[356805371,1743230841062,-17519.76766026,0.0002399,2]
[356805374,1743230946081,-166.0,0.00022,2]
[356805375,1743230946102,-128.0,0.00022192,2]
[356805376,1743230946130,-38.0,0.00022192,2]
[356805405,1743231032756,-166.0,0.00023014,2]
[356805406,1743231032766,-150.746997,0.00023391,14]
[356805407,1743231032775,-150.746997,0.00023668,14]
[356805408,1743231032784,-150.0,0.0002393,2]
[356805409,1743231032794,-150.746997,0.00023946,14]
[356805410,1743231032803,-205.41394928,0.00023989,2]
[356805411,1743231032813,-500.0,0.00023989,2]
[356805412,1743231032822,-595.04147131,0.00023989,2]
[356805413,1743231032831,-300.0,0.00023989,2]
[356805414,1743231032841,-10846.5433441,0.0002399,2]
[356805415,1743231032853,-1084.74651482,0.0002399,2]
[356805416,1743231032865,-1273.32038068,0.0002399,2]
[356805426,1743231038444,-2282.53026762,0.0002399,2]
[356805427,1743231038456,-2697.14309063,0.0002399,2]
[356805428,1743231038813,-6607.60158632,0.0002399,2]
[356805429,1743231038938,-323.86677982,0.0002399,2]
[356805430,1743231039412,-486.16909319,0.0002399,2]
[356805431,1743231039471,166.0,0.00022,2]
[356805439,1743231040772,-166.0,0.00023014,2]
[356805440,1743231040782,-4383.91186261,0.0002399,2]
[356805442,1743231041043,-12402.56294658,0.0002399,2]
[356805443,1743231041061,-20239.32562824,0.0002399,2]
[356805444,1743231041072,-168.0,0.00024164,2]
[356805445,1743231041082,-1090.3418453,0.00024183,2]
[356805446,1743231041091,-219.91544938,0.00024222,2]
[356805447,1743231041100,-153.333663,0.00024223,14]
[356805448,1743231041109,-150.746997,0.00024223,14]
[356805449,1743231041118,-318.0,0.00024307,2]
[356805450,1743231041127,-500.0,0.00024309,2]
[356805451,1743231041136,-500.0,0.0002431,2]
[356805452,1743231041145,-153.333663,0.000245,14]
[356805453,1743231041155,-150.746997,0.000245,14]
[356805454,1743231041164,-209.583,0.00024556,7]
[356805455,1743231041173,-259.69927853,0.00024557,3]
[356805456,1743231041182,-199002.15792512,0.00024557,2]
[356805473,1743231043866,-10683.6909884,0.00024557,2]
[356805485,1743231083697,-180.192473,0.00024183,2]
[356805486,1743231085475,4.38840769,0.00013699,2]
[356805487,1743231085504,180.42445131,0.00013699,2]
[356805488,1743231093508,-180.192473,0.0002389,2]
[356805489,1743231112058,-180.192473,0.00024547,3]
[356805490,1743231122937,-300.0,0.0002389,2]
[356805491,1743231124025,-330.54916698,0.0002389,2]
[356805493,1743231128841,-278.25369454,0.0002389,2]
[356805494,1743231134353,-153.92089248,0.0002389,2]
[356805499,1743231945117,-214.957372,0.00022815,2]
[356805500,1743231945139,-56.842628,0.00022838,2]
[356805501,1743232030118,-294.93861171,0.00022838,2]
[356805502,1743232041091,-5.06138829,0.00022838,2]
[356805503,1743232041113,-186.79708811,0.00022839,2]
[356805504,1743232041136,-321.9515236,0.00022839,2]
[356805505,1743232045094,-178.0484764,0.00022839,2]
[356805506,1743232045117,-277.3515236,0.00022839,2]
[356805507,1743232146121,-300.0,0.00022838,2]
[356805508,1743232146146,-292.08435181,0.00022839,2]
[356805509,1743232146174,-500.0,0.00022839,2]
[356805510,1743232146197,-500.0,0.00022839,2]
[356805511,1743232146223,-500.0,0.00022839,2]
[356805512,1743232146249,-500.0,0.00022839,2]
[356805513,1743232146276,-500.0,0.00022839,2]
[356805514,1743232146302,-500.0,0.00022839,2]
[356805515,1743232146329,-500.0,0.00022839,2]
[356805516,1743232146354,-500.0,0.00022839,2]
[356805517,1743232146380,-500.0,0.00022839,2]
[356805518,1743232146408,-196.19922609,0.00022839,2]
[356805519,1743232146432,-490.0,0.00022839,2]
[356805520,1743232146453,-24900.0,0.0002284,2]
[356805521,1743232146472,-20635.31310078,0.00023,2]
[356805522,1743232146492,-606.54091085,0.00023291,2]
[356805523,1743232146512,-150.746997,0.00023391,14]
[356805524,1743232146531,-150.746997,0.00023668,14]
[356805525,1743232146552,-165.87905992,0.00023731,2]
[356805526,1743232146572,-1370.14410866,0.00023731,2]
[356805527,1743232146592,-600.0,0.00023776,2]
[356805528,1743232146611,-300.0,0.00023776,2]
[356805529,1743232146632,-290.45046521,0.00023789,2]
[356805530,1743232146653,-2645.03216507,0.0002379,3]
[356805531,1743232146673,-282.01803971,0.0002379,3]
[356805532,1743232146693,-165.87905992,0.0002379,2]
[356805533,1743232146712,-15239.46744269,0.0002379,2]
[356805534,1743232151137,-280619.54978667,0.0002379,2]
[356805573,1743232231888,-278.80680054,0.00023776,2]
[356805574,1743232232044,-321.19319946,0.00023776,2]
[356805575,1743232232054,-300.0,0.00023776,2]
[356805576,1743232232064,-167.54,0.0002378,2]
[356805577,1743232232073,-167.54,0.0002378,2]
[356805578,1743232232082,-167.54,0.0002378,2]
[356805579,1743232232092,-167.54,0.0002378,2]
[356805580,1743232232102,-167.54,0.0002378,2]
[356805581,1743232232111,-167.54,0.0002378,2]
[356805582,1743232232120,-300.0,0.00023789,2]
[356805583,1743232232131,-74140.98277064,0.0002379,2]
[356805584,1743232232140,-622.2,0.00023831,2]
[356805585,1743232232149,-645.2214,0.00023886,2]
[356805586,1743232232159,-3991.07695971,0.0002389,2]
[356805595,1743232237752,-530.72329702,0.00023731,2]
[356805596,1743232237761,-101.00368579,0.0002389,2]
[356805597,1743232237893,-42131.5029603,0.0002389,2]
[356805598,1743232237904,-17189.34901759,0.0002389,2]
[356805604,1743232240044,-882.70107542,0.0002389,2]
[356805605,1743232240058,-2691.3145,0.0002389,2]
[356805606,1743232240156,-714.78080813,0.0002389,2]
[356805607,1743232240167,-330.154,0.0002389,2]
[356805608,1743232241151,-175.159423,0.0002389,2]
[356805637,1743232245931,-825.11913446,0.0002369,2]
[356805639,1743232245943,-628.07000001,0.0002369,2]
[356805640,1743232245956,-11171.48111172,0.0002369,2]
[356805641,1743232246003,-522.77095686,0.0002369,2]
[356805660,1743232956696,1444.0,0.00014,2]
[356805676,1743233147106,-202.79234252,0.00022669,2]
[356805686,1743233300001,196.7200459,0.00013699,2]
[356805687,1743233311102,278.30129969,0.0001,2]
[356805688,1743233317519,154.27014011,9e-05,2]
[356805692,1743233321193,630.54916698,0.0001,2]
[356805696,1743233346570,-3798.0858675,0.00022531,2]
[356805697,1743233346593,-300.0,0.00022669,2]
[356805698,1743233346616,-500.0,0.0002267,2]
[356805699,1743233346639,-500.0,0.0002267,2]
[356805700,1743233346663,-500.0,0.0002267,2]
[356805701,1743233346686,-500.0,0.0002267,2]
[356805702,1743233346714,-500.0,0.0002267,2]
[356805703,1743233346736,-444.84231856,0.0002267,2]
[356805704,1743233346761,-411.55466547,0.0002267,2]
[356805705,1743233346783,-1745.04917285,0.00022671,2]
[356805707,1743233363086,-1244.79170997,0.00022671,2]
[356805741,1743233432089,-300.0,0.0002267,2]
[356805743,1743233432099,-382.03105792,0.00022671,2]
[356805744,1743233432226,-2122.89697659,0.00022671,2]
[356805745,1743233432238,-19405.23108267,0.00022671,2]
[356805746,1743233432247,-1302.7780114,0.0002301,2]
[356805747,1743233432256,-180.97995016,0.00023443,2]
[356805748,1743233432265,-464.38288491,0.0002357,2]
[356805749,1743233432274,-3757.083773,0.0002359,2]
[356805750,1743233432283,-3642.0,0.000236,2]
[356805751,1743233432293,-177.93694765,0.00023631,2]
[356805752,1743233432304,-245.6922866,0.00023631,2]
[356805753,1743233432314,-433.5811716,0.00023676,2]
[356805821,1743233440340,-166.4188284,0.00023676,2]
[356805823,1743233440350,-300.0,0.00023676,2]
[356805824,1743233440359,-899.9,0.0002368,2]
[356805826,1743233440368,-279.58990181,0.0002368,2]
[356805842,1743233446119,-252.816441,0.0002368,2]
[356805863,1743234427133,-300.0,0.00022609,2]
[356805864,1743234427158,-500.0,0.0002261,2]
[356805865,1743234427182,-363.448,0.0002261,2]
[356805867,1743234445145,-136.552,0.0002261,2]
[356805868,1743234445177,-137.13652622,0.0002261,2]
[356805932,1743234638216,-300.0,0.00022609,2]
[356805933,1743234638226,-362.86347378,0.0002261,2]
[356805934,1743234638235,-419.98735774,0.0002261,2]
[356805935,1743234638245,-500.0,0.0002261,2]
[356805936,1743234638254,-500.0,0.0002261,2]
[356805937,1743234638264,-500.0,0.0002261,2]
[356805938,1743234638274,-500.0,0.0002261,2]
[356805939,1743234638283,-539.54523193,0.0002261,2]